bitfinex-derivatives/quotes_SOLF0:USTF0_20250507
["timestamp","ask_amount","ask_price","bid_price","bid_amount"]
[1746576769440,6.8054,146.95,146.93,6.8062]
[1746576771042,37.1854,146.95,146.93,6.8062]
[1746576771233,6.8059,146.94,146.91,6.8068]
[1746576771441,30.38,146.95,146.89,30.38]
[1746576771941,6.8061,146.94,146.89,30.38]
[1746576772241,30.38,146.95,146.89,30.38]
[1746576772838,6.8058,146.94,146.91,6.8067]
[1746576773036,30.38,146.95,146.89,30.38]
[1746576773732,30.38,146.95,146.91,6.8069]
[1746576773733,6.8058,146.94,146.91,6.8069]
[1746576775238,30.38,146.95,146.89,30.38]
[1746576775446,6.8064,146.93,146.9,6.8075]
[1746576776241,6.8059,146.94,146.91,6.8069]
[1746576777544,6.8063,146.93,146.91,6.8069]
[1746576777740,60.76,146.95,146.91,6.8069]
[1746576778239,6.806,146.94,146.91,6.8069]
[1746576778439,60.76,146.95,146.92,6.8066]
[1746576778939,60.76,146.95,146.93,6.806]
[1746576779140,30.38,146.95,146.89,36.20570997]
[1746576779341,30.38,146.95,146.89,30.38]
[1746576779640,30.38,146.95,146.91,6.807]
[1746576779943,30.38,146.95,146.89,30.38]
[1746576780147,30.38,146.95,146.9,6.8074]
[1746576780947,6.8061,146.94,146.91,6.8071]
[1746576781644,6.8061,146.94,146.9,6.8076]
[1746576782246,37.1855,146.95,146.91,6.8071]
[1746576783244,30.38,146.95,146.92,6.8064]
[1746576783445,30.38,146.95,146.89,30.38]
[1746576783645,30.38,146.95,146.9,5.82570997]
[1746576783944,30.38,146.97,146.94,6.8054]
[1746576784650,37.184,146.98,146.95,6.8053]
[1746576784942,30.38,146.99,146.93,30.38]
[1746576785346,30.38,146.99,146.97,6.804]
[1746576785743,30.38,147.01,146.97,6.804]
[1746576785945,37.1631,147.0,146.97,6.804]
[1746576786446,30.36,147.0,146.97,6.8041]
[1746576786848,37.163,147.0,146.96,6.8047]
[1746576787150,37.163,147.0,146.93,38.30440997]
[1746576787341,37.163,147.0,146.96,6.8046]
[1746576787748,6.8036,146.99,146.96,6.8046]
[1746576788151,30.36,147.0,146.95,6.8051]
[1746576788351,6.804,146.98,146.95,6.8051]
[1746576788946,6.8036,146.99,146.96,6.8048]
[1746576791146,6.8039,146.98,146.93,32.4787]
[1746576791346,30.36,147.0,146.93,32.4787]
[1746576791549,30.36,147.0,146.93,30.38]
[1746576791751,6.8047,146.97,146.94,6.8056]
[1746576792650,6.8047,146.97,146.93,37.1861]
[1746576793247,6.8047,146.97,146.94,6.8058]
[1746576793654,30.36,146.96,146.94,6.8058]
[1746576794653,37.1651,146.96,146.93,30.38]
[1746576794857,37.1651,146.96,146.91,2.018]
[1746576795354,6.8056,146.95,146.92,6.8065]
[1746576795861,37.1651,146.96,146.92,6.8065]
[1746576797455,6.8054,146.95,146.92,6.8065]
[1746576798253,37.1651,146.96,146.93,6.8062]
[1746576798450,30.36,146.96,146.93,6.8062]
[1746576798651,30.36,146.96,146.91,2.018]
[1746576798852,6.8056,146.95,146.92,6.8067]
[1746576799355,6.806,146.94,146.91,8.8251]
[1746576799556,36.18570997,146.96,146.88,4.2521]
[1746576799849,38.21180997,146.96,146.84,30.34]
[1746576800055,1.23031326,146.95,146.84,30.34]
[1746576800645,6.8079,146.9,146.87,6.8088]
[1746576800849,30.36,146.89,146.87,6.8088]
[1746576802458,30.36,146.89,146.85,6.8098]
[1746576802759,30.36,146.89,146.83,2.0438]
[1746576802956,30.34,146.88,146.83,2.0438]
[1746576803159,30.34,146.88,146.82,31.86142765]
[1746576803361,30.34,146.88,146.81,30.34]
[1746576803553,6.8095,146.86,146.81,6.8115]
[1746576803753,30.36,146.85,146.79,4.1793]
[1746576804160,30.36,146.85,146.81,6.8115]
[1746576804349,30.36,146.85,146.79,4.1793]
[1746576804760,30.36,146.85,146.82,6.8112]
[1746576806256,30.36,146.85,146.83,6.8108]
[1746576807159,30.36,146.85,146.82,6.8111]
[1746576807867,30.36,146.85,146.83,6.8108]
[1746576810361,30.36,146.85,146.82,6.8112]
[1746576811164,30.36,146.85,146.83,6.8108]
[1746576812367,30.36,146.85,146.84,6.8104]
[1746576813370,30.34,146.88,146.86,6.8093]
[1746576813562,30.34,146.88,146.8,5.82570997]
[1746576813762,30.36,146.87,146.8,5.82570997]
[1746576813964,30.36,146.87,146.86,6.8095]
[1746576814766,6.8078,146.9,146.87,6.8087]
[1746576814972,30.36,146.89,146.87,6.8087]
[1746576815672,30.36,146.89,146.88,6.8086]
[1746576816762,30.36,146.91,146.83,5.82570997]
[1746576817070,30.36,146.91,146.84,1.9818]
[1746576817366,30.36,146.91,146.9,6.8076]
[1746576817570,30.36,146.92,146.86,30.36]
[1746576819473,30.36,146.92,146.9,6.8075]
[1746576821377,30.36,146.92,146.91,6.8072]
[1746576821575,30.36,146.94,146.86,36.18570997]
[1746576821876,30.36,146.93,146.86,36.18570997]
[1746576822077,30.36,146.93,146.92,6.8063]
[1746576822382,30.36,146.93,146.86,36.18570997]
[1746576823277,30.36,146.93,146.91,6.8068]
[1746576826473,30.36,146.93,146.92,6.8067]
[1746576826673,30.36,146.94,146.86,36.18570997]
[1746576826874,37.1646,146.97,146.94,6.8056]
[1746576827180,30.34,146.96,146.94,6.8056]
[1746576828282,30.36,146.97,146.91,2.0567]
[1746576828581,30.34,146.96,146.91,4.1191]
[1746576829083,30.34,146.96,146.95,6.8049]
[1746576830283,30.34,146.96,146.94,6.8057]
[1746576832884,30.34,146.96,146.95,6.8053]
[1746576836491,30.36,147.0,146.97,6.8043]
[1746576836681,30.32,146.99,146.97,6.8043]
[1746576837187,30.32,146.99,146.98,6.8039]
[1746576837384,30.32,146.99,146.94,30.32]
[1746576837584,30.32,146.99,146.97,6.8041]
[1746576838290,30.32,146.99,146.98,6.8039]
[1746576839386,30.32,146.99,146.94,30.32]
[1746576839592,30.32,146.99,146.97,6.8042]
[1746576840293,30.32,146.99,146.98,6.8039]
[1746576840893,30.32,146.99,146.94,30.32]
[1746576841295,30.32,146.99,146.97,6.804]
[1746576842900,30.32,146.99,146.98,6.8039]
[1746576844197,30.32,147.0,146.99,6.8032]
[1746576844393,30.32,147.01,146.99,6.8032]
[1746576844595,30.32,147.03,147.0,6.803]
[1746576844996,30.32,147.02,147.0,6.803]
[1746576845697,30.32,147.01,147.0,6.803]
[1746576846101,30.32,147.01,146.99,6.8034]
[1746576848801,30.32,147.03,147.0,6.8029]
[1746576848997,30.3,147.02,147.0,6.8029]
[1746576849196,30.32,147.03,147.0,6.8029]
[1746576849398,67.4217,147.03,147.0,6.8029]
[1746576849897,6.8009,147.05,146.97,4.0962]
[1746576850097,30.3,147.03,146.98,30.32]
[1746576850401,30.3,147.03,147.01,6.8023]
[1746576850898,30.3,147.03,147.0,6.8028]
[1746576851503,37.1019,147.03,147.0,6.8028]
[1746576852394,37.1019,147.03,147.01,6.8025]
[1746576852698,37.1019,147.03,146.98,30.32]
[1746576852900,30.3,147.03,146.98,30.32]
[1746576853499,37.1017,147.03,146.98,30.32]
[1746576853801,37.1017,147.03,147.01,6.8023]
[1746576853802,30.3,147.03,147.01,6.8023]
[1746576856296,6.8009,147.05,147.02,6.8019]
[1746576856501,30.3,147.04,147.02,6.8019]
[1746576857196,37.1204,147.06,147.03,6.8014]
[1746576857403,30.28,147.05,147.03,6.8014]
[1746576857903,37.1204,147.06,147.03,6.8014]
[1746576858095,30.32,147.06,146.98,36.14570997]
[1746576858294,30.32,147.09,146.98,36.14570997]
[1746576858601,30.28,147.06,146.98,36.14570997]
[1746576859700,6.8,147.07,147.04,6.8009]
[1746576860097,37.08,147.07,146.98,36.14570997]
[1746576861101,37.08,147.07,147.04,6.8008]
[1746576861404,37.08,147.07,146.99,5.82570997]
[1746576861801,30.28,147.07,147.05,6.8003]
[1746576862307,30.28,147.07,147.06,6.8002]
[1746576862507,37.1191,147.09,147.06,6.8002]
[1746576862805,30.28,147.08,147.06,6.8002]
[1746576863209,37.1191,147.09,147.06,6.8002]
[1746576863408,30.28,147.08,147.06,6.8002]
[1746576865110,37.0794,147.08,147.05,6.8005]
[1746576865411,37.0794,147.08,147.02,30.28]
[1746576865908,30.28,147.08,147.06,6.8]
[1746576868010,37.0793,147.08,147.06,6.8]
[1746576868312,30.28,147.08,147.07,6.7998]
[1746576868510,30.32,147.09,147.07,6.7998]
[1746576868511,60.58,147.09,147.07,6.7998]
[1746576868707,30.26,147.09,147.07,6.7998]
[1746576870307,6.7981,147.11,147.03,6.3336]
[1746576870508,30.26,147.1,147.03,6.3336]
[1746576871110,30.26,147.1,147.08,6.799]
[1746576871412,30.26,147.12,147.03,6.3336]
[1746576871613,6.7971,147.13,147.1,6.7984]
[1746576871810,30.26,147.12,147.1,6.7984]
[1746576872205,6.7971,147.13,147.1,6.7984]
[1746576872206,37.0571,147.13,147.1,6.7984]
[1746576875713,37.0571,147.13,147.09,6.7987]
[1746576876215,37.0571,147.13,147.1,6.7983]
[1746576876713,6.7971,147.13,147.1,6.7983]
[1746576876912,2.0678,147.15,147.1,6.7982]
[1746576877110,2.0678,147.15,147.06,30.26]
[1746576877314,30.26,147.17,147.06,30.26]
[1746576877812,30.24,147.16,147.11,5.82570997]
[1746576878011,30.24,147.16,147.15,6.7958]
[1746576878409,32.2642,147.2,147.12,30.26]
[1746576878612,30.24,147.19,147.17,6.7951]
[1746576881414,30.26,147.23,147.12,30.26]
[1746576881609,30.24,147.22,147.14,5.82570997]
[1746576881811,30.24,147.22,147.15,2.007]
[1746576882006,30.24,147.22,147.16,30.26]
[1746576883217,30.24,147.22,147.19,6.794]
[1746576883917,37.033,147.22,147.19,6.794]
[1746576884822,6.7925,147.23,147.16,30.26]
[1746576885018,30.22,147.23,147.16,30.26]
[1746576885822,6.7929,147.22,147.19,6.7939]
[1746576888422,6.7926,147.23,147.2,6.7937]
[1746576888624,37.0126,147.23,147.2,6.7937]
[1746576889219,30.22,147.23,147.2,6.7937]
[1746576889721,6.7931,147.22,147.19,6.7941]
[1746576889923,30.22,147.23,147.16,30.26]
[1746576890130,30.22,147.26,147.16,30.26]
[1746576890423,6.7918,147.25,147.2,6.7937]
[1746576890618,30.2,147.24,147.18,5.82570997]
[1746576891219,2.0443,147.27,147.18,5.82570997]
[1746576891526,36.9913,147.26,147.22,6.7925]
[1746576893731,8.8351,147.27,147.2,30.2]
[1746576894027,30.2,147.26,147.2,30.2]
[1746576894228,30.2,147.26,147.24,6.7918]
[1746576894829,30.2,147.26,147.23,6.7922]
[1746576895529,36.02570997,147.3,147.2,30.2]
[1746576895530,6.7903,147.28,147.2,30.2]
[1746576895731,30.2,147.27,147.21,2.0443]
[1746576895930,6.7903,147.28,147.25,6.7911]
[1746576896128,30.2,147.27,147.25,6.7911]
[1746576896631,30.2,147.28,147.25,6.7911]
[1746576897330,30.2,147.28,147.26,6.7907]
[1746576897523,30.2,147.28,147.21,6.3604]
[1746576898018,6.7893,147.3,147.21,12.18610997]
[1746576898229,36.9693,147.3,147.21,42.36610997]
[1746576898429,36.9693,147.3,147.28,6.79]
[1746576898733,30.18,147.31,147.25,30.2]
[1746576899135,30.18,147.31,147.29,6.7894]
[1746576899629,36.9688,147.31,147.25,30.2]
[1746576899825,30.18,147.31,147.27,6.7901]
[1746576901032,6.7894,147.3,147.27,6.7901]
[1746576902133,6.7887,147.31,147.28,6.7901]
[1746576902323,30.18,147.3,147.25,30.2]
[1746576902834,6.79,147.29,147.25,36.9912]
[1746576903032,30.18,147.3,147.25,36.9912]
[1746576903239,30.18,147.3,147.25,30.2]
[1746576903432,30.18,147.3,147.21,32.2243]
[1746576903937,36.9695,147.3,147.26,6.7907]
[1746576904140,36.9695,147.3,147.21,32.2243]
[1746576904332,36.9695,147.3,147.26,6.7906]
[1746576904532,36.9695,147.3,147.21,32.2243]
[1746576904732,30.18,147.3,147.21,32.2243]
[1746576904940,30.18,147.3,147.22,5.82570997]
[1746576905536,30.18,147.3,147.29,6.7896]
[1746576905839,30.16,147.31,147.29,6.7896]
[1746576906236,30.16,147.31,147.3,6.7892]
[1746576912141,30.16,147.31,147.22,13.5857]
[1746576912338,30.16,147.31,147.23,38.05610997]
[1746576913036,30.16,147.31,147.29,6.7893]
[1746576913634,30.16,147.31,147.27,6.7902]
[1746576913836,30.16,147.31,147.24,4.0637]
[1746576914034,6.7894,147.3,147.26,6.791]
[1746576914243,30.16,147.31,147.23,32.2304]
[1746576914739,6.7899,147.29,147.26,6.7908]
[1746576915141,30.16,147.31,147.26,6.7908]
[1746576915439,30.16,147.31,147.23,32.2304]
[1746576915740,6.7899,147.29,147.26,6.7907]
[1746576916236,30.16,147.31,147.23,32.2304]
[1746576916443,6.7894,147.3,147.27,6.7905]
[1746576917847,30.16,147.31,147.27,6.7905]
[1746576918245,30.16,147.31,147.28,6.7901]
[1746576918638,30.16,147.31,147.23,38.05610997]
[1746576919344,6.7885,147.32,147.23,38.05610997]
[1746576919544,30.14,147.31,147.23,38.05610997]
[1746576919939,36.9288,147.31,147.28,6.7898]
[1746576920147,30.14,147.31,147.23,38.05610997]
[1746576920334,30.14,147.31,147.3,6.7892]
[1746576920945,6.788,147.33,147.3,6.7892]
[1746576921145,30.14,147.32,147.3,6.7892]
[1746576921337,36.9283,147.32,147.29,6.7892]
[1746576921745,30.14,147.32,147.27,30.14]
[1746576922444,6.7897,147.29,147.27,30.14]
[1746576922645,30.14,147.32,147.27,30.14]
[1746576922946,6.7889,147.31,147.28,6.7898]
[1746576923248,6.7889,147.31,147.27,30.14]
[1746576923441,6.7889,147.31,147.28,6.79]
[1746576923947,6.7885,147.32,147.29,6.7896]
[1746576924140,30.14,147.31,147.29,6.7896]
[1746576924336,6.7885,147.32,147.29,6.7896]
[1746576924640,30.14,147.3,147.29,6.7896]
[1746576925252,30.14,147.33,147.29,6.7896]
[1746576925548,36.928,147.33,147.3,6.7891]
[1746576925847,30.14,147.33,147.29,6.7894]
[1746576926150,6.7884,147.32,147.29,6.7894]
[1746576927248,36.928,147.33,147.3,6.7891]
[1746576927438,30.14,147.33,147.27,30.14]
[1746576928250,30.14,147.33,147.3,6.7891]
[1746576928750,36.928,147.33,147.3,6.7891]
[1746576928950,30.18,147.35,147.27,30.14]
[1746576929149,20.3505,147.43,147.28,6.2206]
[1746576929347,67.30927516,147.42,147.29,5.82570997]
[1746576929651,1.22356519,147.41,147.29,5.82570997]
[1746576929949,30.12,147.4,147.32,5.82570997]
[1746576930145,30.14,147.42,147.33,32.2172]
[1746576930453,30.12,147.41,147.37,6.7857]
[1746576930652,30.12,147.41,147.34,1.9995]
[1746576931150,30.14,147.42,147.34,1.9995]
[1746576931351,13.5588,147.52,147.34,1.9995]
[1746576931352,30.12,147.43,147.35,7.83650997]
[1746576932743,30.12,147.43,147.37,6.7858]
[1746576933242,30.12,147.43,147.35,2.0108]
[1746576933443,30.12,147.42,147.35,2.0108]
[1746576933650,30.12,147.42,147.35,7.83650997]
[1746576933845,30.12,147.42,147.4,6.7844]
[1746576934044,30.14,147.46,147.38,30.12]
[1746576934245,30.12,147.45,147.4,6.7842]
[1746576934550,30.12,147.45,147.38,30.12]
[1746576934751,30.12,147.44,147.41,6.7837]
[1746576935251,36.9221,147.46,147.41,6.7836]
[1746576935252,6.7825,147.45,147.41,6.7836]
[1746576935546,30.12,147.44,147.41,6.7836]
[1746576935748,30.12,147.44,147.42,6.7836]
[1746576935946,6.7825,147.45,147.42,6.7836]
[1746576936150,30.12,147.44,147.42,6.7836]
[1746576936345,30.12,147.44,147.41,6.784]
[1746576936653,30.12,147.44,147.38,30.12]
[1746576938248,30.12,147.44,147.43,6.7832]
[1746576939048,30.12,147.44,147.42,6.7836]
[1746576939256,30.12,147.44,147.38,30.12]
[1746576939456,36.9028,147.44,147.4,6.7843]
[1746576939654,6.7828,147.44,147.4,6.7843]
[1746576939951,30.1,147.43,147.4,6.7843]
[1746576940155,30.1,147.43,147.41,6.7841]
[1746576941158,30.1,147.43,147.4,6.7843]
[1746576941354,30.1,147.43,147.38,30.12]
[1746576942058,30.1,147.43,147.41,6.7838]
[1746576942355,30.1,147.43,147.38,30.12]
[1746576942854,30.1,147.43,147.4,6.7842]
[1746576943049,36.8836,147.43,147.38,30.12]
[1746576943447,30.1,147.43,147.4,6.7845]
[1746576944655,30.1,147.43,147.41,6.784]
[1746576946259,30.1,147.43,147.42,6.7836]
[1746576947353,36.9218,147.46,147.43,6.7831]
[1746576947555,30.1,147.45,147.43,6.7831]
[1746576948161,36.9218,147.46,147.43,6.7831]
[1746576948362,30.1,147.45,147.43,6.7831]
[1746576948561,30.1,147.45,147.44,6.7825]
[1746576948962,30.12,147.46,147.4,2.1214]
[1746576950065,30.12,147.46,147.38,30.12]
[1746576950453,6.7834,147.43,147.38,30.12]
[1746576950763,30.12,147.42,147.38,30.12]
[1746576951066,6.7843,147.41,147.38,30.12]
[1746576951458,36.9038,147.42,147.38,36.905]
[1746576951655,30.12,147.42,147.38,36.905]
[1746576951860,30.12,147.42,147.38,30.12]
[1746576952459,36.904,147.42,147.39,6.7849]
[1746576952864,30.12,147.42,147.38,30.12]
[1746576953563,36.9039,147.42,147.39,6.7848]
[1746576954062,36.9039,147.42,147.38,30.12]
[1746576954663,36.9039,147.42,147.39,6.7849]
[1746576954859,30.12,147.42,147.38,30.12]
[1746576955253,30.12,147.42,147.41,6.7841]
[1746576956963,30.12,147.48,147.38,35.94570997]
[1746576957164,30.12,147.48,147.39,2.1688]
[1746576957165,30.1,147.47,147.39,2.1688]
[1746576957364,30.1,147.46,147.39,2.1688]
[1746576957766,30.1,147.46,147.44,6.7825]
[1746576958366,30.1,147.46,147.45,6.7822]
[1746576958765,30.1,147.46,147.39,2.1688]
[1746576959066,30.1,147.46,147.44,6.7824]
[1746576959668,36.8819,147.46,147.43,6.783]
[1746576959967,30.1,147.46,147.39,2.1688]
[1746576960860,36.8818,147.46,147.44,6.7826]
[1746576961168,30.1,147.46,147.38,30.12]
[1746576961366,6.783,147.44,147.41,6.784]
[1746576961569,30.1,147.46,147.38,30.12]
[1746576961870,6.7834,147.43,147.4,6.7842]
[1746576962071,30.1,147.42,147.4,6.7842]
[1746576962272,30.1,147.42,147.38,30.12]
[1746576962572,30.1,147.42,147.4,6.7844]
[1746576962762,30.1,147.42,147.38,30.12]
[1746576963275,30.1,147.42,147.41,6.7841]
[1746576963471,2.0274,147.47,147.38,30.12]
[1746576963675,30.12,147.48,147.4,5.82570997]
[1746576963879,30.1,147.51,147.46,6.7815]
[1746576964077,31.32262436,147.5,147.42,30.1]
[1746576964377,30.1,147.5,147.42,30.1]
[1746576964676,6.7813,147.48,147.44,6.7826]
[1746576964975,30.1,147.49,147.44,6.7826]
[1746576965176,30.1,147.49,147.42,30.1]
[1746576965177,6.7816,147.47,147.43,6.783]
[1746576965378,30.1,147.47,147.39,2.1628]
[1746576965678,6.7825,147.45,147.41,6.7838]
[1746576965870,30.1,147.44,147.41,6.7838]
[1746576966068,30.1,147.44,147.38,30.1]
[1746576966271,6.7835,147.43,147.4,6.7845]
[1746576966474,30.1,147.44,147.38,30.1]
[1746576966771,30.1,147.44,147.42,6.7833]
[1746576968182,30.1,147.44,147.43,6.7832]
[1746576968477,30.1,147.44,147.38,30.1]
[1746576968682,30.1,147.44,147.39,6.7846]
[1746576968882,30.1,147.44,147.36,2.0705]
[1746576969082,36.883,147.44,147.4,6.7843]
[1746576970375,36.883,147.44,147.41,6.7841]
[1746576970575,30.1,147.44,147.36,2.0705]
[1746576970775,30.1,147.44,147.41,6.7839]
[1746576970977,36.8831,147.44,147.41,6.7839]
[1746576971177,30.1,147.44,147.39,30.1]
[1746576971774,30.1,147.44,147.39,36.8849]
[1746576971984,6.7839,147.42,147.39,36.8849]
[1746576972187,30.1,147.44,147.39,30.1]
[1746576972381,30.1,147.44,147.41,6.7838]
[1746576972684,30.1,147.44,147.39,30.1]
[1746576973083,30.1,147.44,147.36,32.1705]
[1746576973484,30.1,147.44,147.38,6.785]
[1746576973684,6.7841,147.42,147.38,6.785]
[1746576973985,30.1,147.44,147.39,6.7848]
[1746576974383,6.7838,147.42,147.39,6.7848]
[1746576974578,30.12,147.43,147.36,30.1]
[1746576975089,6.7848,147.4,147.37,6.7859]
[1746576975385,30.36,147.39,147.36,30.1]
[1746576975681,6.7857,147.38,147.35,6.7866]
[1746576975887,30.36,147.39,147.34,30.12]
[1746576976387,30.36,147.39,147.37,6.7857]
[1746576976887,30.36,147.39,147.37,6.7856]
[1746576977080,30.36,147.39,147.34,30.12]
[1746576977486,30.36,147.39,147.38,6.7855]
[1746576978686,30.36,147.39,147.34,30.12]
[1746576979284,30.36,147.39,147.36,6.7863]
[1746576979790,37.1452,147.39,147.36,6.7863]
[1746576979993,30.12,147.43,147.34,30.12]
[1746576980485,30.42,147.42,147.34,30.12]
[1746576980883,30.12,147.43,147.35,9.27904694]
[1746576981389,30.4,147.42,147.35,9.27904694]
[1746576981589,30.38,147.43,147.41,6.7838]
[1746576981989,6.7823,147.45,147.38,30.34]
[1746576982192,30.34,147.46,147.43,6.7832]
[1746576982193,30.38,147.44,147.43,6.7832]
[1746576982390,30.38,147.44,147.39,2.1346]
[1746576982690,37.163,147.44,147.4,6.7841]
[1746576982991,37.163,147.44,147.39,2.1346]
[1746576983192,30.38,147.44,147.39,2.1346]
[1746576983493,30.38,147.44,147.4,6.7843]
[1746576983790,30.38,147.44,147.38,30.34]
[1746576983992,30.38,147.44,147.35,39.61904694]
[1746576985096,6.7843,147.41,147.38,6.7854]
[1746576985392,30.4,147.4,147.35,39.61904694]
[1746576986596,30.38,147.42,147.41,6.7841]
[1746576987688,30.34,147.46,147.35,39.61904694]
[1746576987993,30.36,147.45,147.35,39.61904694]
[1746576988193,37.1425,147.45,147.35,39.61904694]
[1746576988395,37.1425,147.45,147.42,6.7835]
[1746576988895,30.36,147.44,147.43,6.7827]
[1746576990294,30.34,147.46,147.44,6.7825]
[1746576990483,30.32,147.45,147.44,6.7825]
[1746576990683,30.32,147.45,147.39,30.34]
[1746576991092,30.32,147.45,147.4,1.9801]
[1746576991494,30.32,147.45,147.43,6.7828]
[1746576991990,30.34,147.46,147.4,1.9801]
[1746576992206,30.34,147.49,147.4,1.9801]
[1746576992494,30.3,147.48,147.4,1.9801]
[1746576992699,6.7816,147.47,147.44,6.7824]
[1746576992889,30.3,147.48,147.4,1.9801]
[1746576993200,37.0813,147.48,147.45,6.782]
[1746576994195,6.7813,147.48,147.45,6.782]
[1746576994396,30.32,147.47,147.45,6.782]
[1746576994795,37.1013,147.47,147.44,6.7825]
[1746576995098,30.32,147.47,147.4,1.9801]
[1746576995394,30.32,147.46,147.4,1.9801]
[1746576995896,30.32,147.46,147.44,6.7824]
[1746576996891,30.32,147.48,147.4,1.9801]
[1746576997496,37.101,147.48,147.4,1.9801]
[1746576997796,30.32,147.48,147.4,1.9801]
[1746576998096,6.7816,147.47,147.44,6.7826]
[1746576998291,30.32,147.48,147.4,1.9801]
[1746576998493,6.7822,147.46,147.42,6.7832]
[1746576998692,6.7822,147.46,147.4,1.9801]
[1746576999100,6.7822,147.46,147.43,6.7829]
[1746576999299,6.7823,147.45,147.43,6.7829]
[1746576999495,6.7823,147.45,147.4,1.9801]
[1746576999695,30.34,147.49,147.4,1.9801]
[1746576999897,30.32,147.47,147.41,9.27904694]
[1746577000097,60.66,147.49,147.41,9.27904694]
[1746577000300,30.32,147.49,147.47,6.781]
[1746577000492,6.7802,147.5,147.47,6.781]
[1746577000693,30.34,147.49,147.47,6.781]
[1746577002301,30.34,147.49,147.48,6.7809]
[1746577002502,30.3,147.51,147.48,6.7809]
[1746577002897,30.3,147.5,147.48,6.7809]
[1746577003801,30.3,147.5,147.43,30.32]
[1746577004302,30.3,147.5,147.44,6.7825]
[1746577004906,6.7814,147.47,147.44,6.7825]
[1746577005199,30.32,147.46,147.44,6.7825]
[1746577006302,30.32,147.46,147.45,6.7822]
[1746577006499,30.32,147.46,147.43,30.32]
[1746577006901,30.32,147.46,147.44,6.7823]
[1746577008702,30.32,147.46,147.43,37.1029]
[1746577009002,37.1021,147.46,147.43,37.1029]
[1746577009201,30.32,147.46,147.44,6.7826]
[1746577010405,30.32,147.46,147.43,30.32]
[1746577011009,30.32,147.46,147.44,6.7824]
[1746577014105,30.32,147.46,147.45,6.7822]
[1746577014406,30.32,147.46,147.43,30.32]
[1746577014705,30.32,147.46,147.44,6.7824]
[1746577015006,30.32,147.46,147.43,30.32]
[1746577015301,2.0531,147.51,147.43,30.32]
[1746577015507,30.12,147.5,147.43,30.32]
[1746577016307,6.7816,147.47,147.44,6.7825]
[1746577016500,6.7816,147.47,147.43,30.32]
[1746577016501,30.1,147.46,147.43,30.32]
[1746577017608,36.8818,147.46,147.43,37.103]
[1746577017912,30.1,147.46,147.43,30.32]
[1746577018301,30.1,147.46,147.44,6.7824]
[1746577018502,30.1,147.46,147.41,5.79758384]
[1746577018908,30.1,147.46,147.43,6.7829]
[1746577019109,30.1,147.46,147.41,5.79758384]
[1746577019509,30.1,147.46,147.45,6.7822]